fUST/lending_fUST_20250523
["ID","MTS","AMOUNT","RATE_DAILY","PERIOD"]
[362091813,1747989050044,-430.0,0.00019178,2]
[362091814,1747989050054,-1041.66,0.00019178,2]
[362091815,1747989050063,-502.16,0.00019178,2]
[362091816,1747989050073,-430.0,0.00019178,2]
[362091817,1747989050083,-195.291267,0.00019178,2]
[362091818,1747989050096,-300.0,0.00019252,2]
[362091819,1747989050107,-587.0,0.00019253,2]
[362091820,1747989050118,-430.0,0.00019452,2]
[362091821,1747989050128,-430.0,0.00019452,2]
[362091822,1747989050137,-455.35,0.00019452,2]
[362091823,1747989050146,-430.0,0.00019452,2]
[362091824,1747989050156,-1041.66,0.00019452,2]
[362091825,1747989050166,-502.16,0.00019452,2]
[362091826,1747989050175,-430.0,0.00019452,2]
[362091827,1747989050185,-155.297,0.00019723,2]
[362091828,1747989050194,-553.25,0.00019726,2]
[362091829,1747989050203,-366.36,0.00019726,2]
[362091830,1747989050213,-455.35,0.00019726,2]
[362091831,1747989050222,-430.0,0.00019726,2]
[362091832,1747989050231,-1041.66,0.00019726,2]
[362091833,1747989050241,-502.16,0.00019726,2]
[362091834,1747989050251,-430.0,0.00019726,2]
[362091835,1747989050260,-157.98,0.0002,2]
[362091836,1747989050270,-500.0,0.0002,2]
[362091837,1747989050279,-280.88380527,0.0002,30]
[362091838,1747989050289,-455.35,0.0002,2]
[362091839,1747989050298,-430.0,0.0002,2]
[362091840,1747989050308,-1041.66,0.0002,2]
[362091841,1747989050322,-502.16,0.0002,2]
[362091842,1747989050331,-430.0,0.0002,2]
[362091843,1747989050341,-286.156023,0.0002,2]
[362091844,1747989050351,-614.109987,0.00020187,2]
[362091845,1747989050361,-455.35,0.00020273,2]
[362091846,1747989050370,-430.0,0.00020273,2]
[362091847,1747989050380,-1041.66,0.00020273,2]
[362091848,1747989050391,-502.16,0.00020273,2]
[362091849,1747989050401,-430.0,0.00020273,2]
[362091850,1747989050411,-223.0315306,0.00020298,2]
[362091851,1747989050419,-2233.0,0.00020417,2]
[362091852,1747989050430,-707.0,0.00020417,2]
[362091853,1747989050439,-404.0,0.00020417,2]
[362091854,1747989050448,-404.0,0.00020417,2]
[362091855,1747989050458,-455.35,0.00020547,2]
[362091856,1747989050467,-430.0,0.00020547,2]
[362091857,1747989050477,-1041.66,0.00020547,2]
[362091858,1747989050486,-502.16,0.00020547,2]
[362091859,1747989050496,-430.0,0.00020547,2]
[362091860,1747989050505,-156.35150436,0.00020567,2]
[362091861,1747989050515,-175.04106957,0.00020682,5]
[362091862,1747989050525,-455.35,0.00020821,2]
[362091863,1747989050535,-430.0,0.00020821,2]
[362091864,1747989050544,-1041.66,0.00020821,2]
[362091865,1747989050554,-502.16,0.00020821,2]
[362091866,1747989050564,-430.0,0.00020821,2]
[362091867,1747989050574,-523.0,0.00021048,2]
[362091868,1747989050583,-455.35,0.00021095,2]
[362091869,1747989050593,-430.0,0.00021095,2]
[362091870,1747989050603,-1041.66,0.00021095,2]
[362091871,1747989050614,-502.16,0.00021095,2]
[362091872,1747989050624,-538.84,0.00021095,2]
[362091873,1747989050633,-286.156023,0.0002125,2]
[362091874,1747989050643,-455.35,0.00021369,2]
[362091875,1747989050652,-328.59227757,0.00021369,2]
[362091876,1747989050662,-1041.66,0.00021369,2]
[362091877,1747989050672,-502.16,0.00021369,2]
[362091878,1747989050682,-2184.28,0.000215,2]
[362091879,1747989050691,-1100.0,0.00021587,2]
[362091880,1747989050701,-844.254,0.0002164,2]
[362091881,1747989050712,-455.35,0.00021643,2]
[362091882,1747989050722,-1041.66,0.00021643,2]
[362091883,1747989050731,-502.16,0.00021643,2]
[362091884,1747989050741,-231.28369723,0.00021667,2]
[362091885,1747989050751,-272.6,0.000219,2]
[362091886,1747989050761,-200.0,0.00021917,2]
[362091887,1747989050771,-455.35,0.00021917,2]
[362091888,1747989050780,-1041.66,0.00021917,2]
[362091889,1747989050790,-502.16,0.00021917,2]
[362091890,1747989050800,-500.0,0.00021918,2]
[362091891,1747989050809,-500.0,0.00021918,2]
[362091892,1747989050819,-500.0,0.00021918,2]
[362091893,1747989050828,-500.0,0.00021918,2]
[362091894,1747989050838,-500.0,0.00021918,2]
[362091895,1747989050847,-500.0,0.00021918,2]
[362091896,1747989050856,-500.0,0.00021918,2]
[362091897,1747989050866,-500.0,0.00021918,2]
[362091898,1747989050875,-500.0,0.00021918,2]
[362091899,1747989050884,-500.0,0.00021918,2]
[362091900,1747989050894,-500.0,0.00021918,2]
[362091901,1747989050903,-500.0,0.00021918,2]
[362091902,1747989050912,-500.0,0.00021918,2]
[362091903,1747989050921,-500.0,0.00021918,2]
[362091904,1747989050930,-500.0,0.00021918,2]
[362091905,1747989050941,-500.0,0.00021918,2]
[362091906,1747989050951,-500.0,0.00021918,2]
[362091907,1747989050960,-500.0,0.00021918,2]
[362091908,1747989050970,-500.0,0.00021918,2]
[362091909,1747989050980,-500.0,0.00021918,2]
[362091910,1747989050991,-500.0,0.00021918,2]
[362091911,1747989051002,-163.0,0.00022,2]
[362091912,1747989051011,-1392.00054537,0.00022,2]
[362091913,1747989051020,-600.0,0.00022,2]
[362091914,1747989051030,-233.2,0.000221,2]
[362091915,1747989051042,-7456.20848457,0.00022181,2]
[362091916,1747989051052,-455.35,0.00022191,2]
[362091917,1747989051061,-1041.66,0.00022191,2]
[362091918,1747989051071,-502.16,0.00022191,2]
[362091919,1747989051083,-455.35,0.00022465,2]
[362091920,1747989051094,-1041.66,0.00022465,2]
[362091921,1747989051103,-502.16,0.00022465,2]
[362091922,1747989051112,-286.156023,0.000225,2]
[362091923,1747989051123,-195.291267,0.00022603,2]
[362091924,1747989051133,-1100.0,0.00022683,2]
[362091925,1747989051144,-156.35150436,0.00022733,2]
[362091926,1747989051154,-455.4470168,0.00022739,2]
[362091927,1747989051164,-1041.82,0.00022739,2]
[362091928,1747989051175,-502.32,0.00022739,2]
[362091929,1747989051184,-160.0,0.00023,3]
[362091930,1747989051193,-160.0,0.00023,3]
[362091931,1747989051203,-160.0,0.00023,3]
[362091932,1747989051212,-160.0,0.00023,3]
[362091933,1747989051222,-160.0,0.00023,3]
[362091934,1747989051231,-422.85710789,0.00023,3]
[362091935,1747989051240,-163.0,0.00023014,7]
[362091936,1747989051250,-239.84119403,0.00023036,2]
[362091937,1747989051259,-286.156023,0.00023245,8]
[362091938,1747989051269,-500.0,0.00023267,2]
[362091939,1747989051278,-4722.26,0.00023287,2]
[362091940,1747989051288,-2233.0,0.00023417,2]
[362091941,1747989051297,-707.0,0.00023417,2]
[362091942,1747989051308,-404.0,0.00023417,2]
[362091943,1747989051323,-404.0,0.00023417,2]
[362091944,1747989051334,-286.156023,0.00023422,8]
[362091945,1747989051344,-1439.532048,0.0002352,2]
[362091946,1747989051354,-2200.0,0.00023526,2]
[362091947,1747989051364,-286.156023,0.000236,8]
[362091948,1747989051374,-744.73,0.0002365,7]
[362091949,1747989051384,-286.156023,0.00023693,9]
[362091950,1747989051395,-286.156023,0.0002372,9]
[362091951,1747989051405,-286.156023,0.00023746,9]
[362091952,1747989051414,-286.156023,0.0002375,2]
[362091953,1747989051425,-744.73,0.0002375,4]
[362091954,1747989051436,-286.156023,0.00023773,9]
[362091955,1747989051445,-286.156023,0.00023778,8]
[362091956,1747989051455,-1100.0,0.00023779,2]
[362091957,1747989051465,-894.64583333,0.000238,10]
[362091958,1747989051474,-12647.66147447,0.000238,10]
[362091959,1747989051483,-212.48480548,0.000238,10]
[362091960,1747989051493,-286.156023,0.000238,9]
[362091961,1747989051502,-905.88115111,0.00023815,2]
[362091962,1747989051512,-744.73,0.0002385,2]
[362091963,1747989051521,-141037.88399792,0.000239,2]
[362091964,1747989051778,-898.91288708,0.000239,2]
[362091965,1747989051940,-167.75816956,0.0001633,2]
[362091966,1747989051949,-353.07,0.00016412,3]
[362091967,1747989051959,-706.14,0.00017782,3]
[362091968,1747989051969,-1006.44940133,0.000183,2]
[362091969,1747989051978,-1006.44940105,0.000183,2]
[362091970,1747989051988,-1006.44940105,0.000183,2]
[362091971,1747989051997,-1006.44940105,0.000183,2]
[362091972,1747989052006,-1006.44940105,0.000183,2]
[362091973,1747989052016,-1006.44940105,0.000183,2]
[362091974,1747989052025,-593.2833196,0.00018555,2]
[362091975,1747989052121,-167.75816955,0.0001821,2]
[362091976,1747989052130,-413.16608145,0.00018555,2]
[362091977,1747989052140,-1006.44940105,0.00018831,2]
[362091978,1747989052149,-1006.44940105,0.00019107,2]
[362091979,1747989052159,-1006.44940105,0.00019383,2]
[362091980,1747989052168,-1006.44940105,0.00019659,2]
[362091981,1747989052178,-1006.44940105,0.00019934,2]
[362091982,1747989052187,-1006.44940105,0.0002021,2]
[362091983,1747989052196,-960.0,0.00020417,2]
[362091984,1747989052205,-1006.44940105,0.00020486,3]
[362091985,1747989052214,-1006.44940105,0.00020762,3]
[362091986,1747989052222,-1006.44940105,0.00021038,4]
[362091987,1747989052231,-1006.44940105,0.00021314,5]
[362091988,1747989052239,-960.0,0.00023417,2]
[362091989,1747989052247,-59489.51663108,0.000239,2]
[362091990,1747989052278,-1328.2,0.000239,2]
[362091991,1747989163890,2000.0,0.00026447,30]
[362091992,1747989164204,1368.8,0.00026447,30]
[362091993,1747989244333,1000.0,0.00026448,30]
[362091994,1747989295661,5000.0,0.00016,2]
[362091995,1747989298363,508.773812,0.00015443,2]
[362091996,1747989417262,209.8776403,0.00015426,2]
[362091998,1747989564232,615.364554,0.00013699,2]
[362091999,1747989763360,2000.0,0.00026444,30]
[362092000,1747989763662,1776.8,0.00026444,30]
[362092001,1747989955907,14744.0,0.00015421,2]
[362092002,1747989993704,250.0,0.00015423,2]
[362092014,1747990046841,609.361226,0.00015427,2]
[362092027,1747990180180,183.087065,0.00015544,2]
[362092069,1747990232610,-158.31664122,0.00016319,2]
[362092070,1747990232620,-158.31664122,0.00016322,2]
[362092071,1747990232629,-820.2835307,0.00016338,2]
[362092072,1747990232639,-300.0,0.00016419,2]
[362092073,1747990232648,-300.0,0.0001642,2]
[362092074,1747990232657,-300.0,0.0001642,2]
[362092075,1747990232667,-300.0,0.0001642,2]
[362092076,1747990232677,-1200.0,0.0001642,2]
[362092077,1747990232687,-300.0,0.0001642,2]
[362092078,1747990232697,-162.10536619,0.00016421,2]
[362092079,1747990232708,-500.0,0.00016421,2]
[362092080,1747990232718,-500.0,0.00016421,2]
[362092081,1747990232728,-431.58840877,0.00016421,2]
[362092082,1747990232737,-500.0,0.00016421,2]
[362092083,1747990232747,-500.0,0.00016421,2]
[362092084,1747990232758,-500.0,0.00016421,2]
[362092085,1747990232767,-625.02004505,0.00016421,2]
[362092086,1747990232778,-500.0,0.00016421,2]
[362092087,1747990232789,-500.0,0.00016421,2]
[362092088,1747990232800,-500.0,0.00016421,2]
[362092089,1747990232810,-441.96563751,0.00016421,2]
[362092090,1747990232820,-7385.22784297,0.00016422,2]
[362092091,1747990232829,-7385.22784297,0.00016422,2]
[362092092,1747990232839,-7385.22784297,0.00016422,2]
[362092093,1747990232849,-7385.22784297,0.00016422,2]
[362092094,1747990232858,-7385.22784297,0.00016422,2]
[362092095,1747990232868,-7385.22784297,0.00016422,2]
[362092096,1747990232878,-7385.22784297,0.00016422,2]
[362092097,1747990232888,-7385.22784297,0.00016422,2]
[362092098,1747990232898,-7385.22784297,0.00016422,2]
[362092099,1747990232907,-7385.22784297,0.00016422,2]
[362092100,1747990232916,-7385.22784297,0.00016422,2]
[362092101,1747990232925,-500.0,0.00016422,2]
[362092102,1747990232934,-500.0,0.00016422,2]
[362092103,1747990232942,-500.0,0.00016422,2]
[362092104,1747990232951,-500.0,0.00016422,2]
[362092105,1747990232960,-500.0,0.00016422,2]
[362092106,1747990232969,-500.0,0.00016422,2]
[362092107,1747990232978,-500.0,0.00016422,2]
[362092108,1747990232987,-500.0,0.00016422,2]
[362092109,1747990232997,-500.0,0.00016422,2]
[362092110,1747990233007,-500.0,0.00016422,2]
[362092111,1747990233016,-482.03455278,0.00016422,2]
[362092112,1747990233026,-500.0,0.00016422,2]
[362092113,1747990233035,-567.66972001,0.00016422,2]
[362092114,1747990233045,-155.297,0.00016437,2]
[362092115,1747990233055,-321.41704221,0.00016438,2]
[362092116,1747990233065,-453.09017933,0.00016438,2]
[362092117,1747990233075,-320.73047115,0.00016438,2]
[362092118,1747990233086,-430.0,0.00016438,2]
[362092119,1747990233095,-430.0,0.00016438,2]
[362092120,1747990233105,-152.78494404,0.00016438,2]
[362092121,1747990233115,-430.0,0.00016438,2]
[362092122,1747990233126,-434.87969168,0.00016438,2]
[362092123,1747990233136,-434.83913059,0.00016438,2]
[362092124,1747990233145,-248.01929323,0.00016438,2]
[362092125,1747990233155,-430.0,0.00016438,2]
[362092126,1747990233165,-436.50301804,0.00016438,2]
[362092127,1747990233174,-244.51200913,0.00016438,2]
[362092128,1747990233184,-202.83911035,0.00016438,2]
[362092129,1747990233193,-370.29280603,0.00016438,2]
[362092130,1747990233203,-430.0,0.00016438,2]
[362092131,1747990233214,-436.05846888,0.00016438,2]
[362092132,1747990233224,-430.0,0.00016438,2]
[362092133,1747990233234,-240.0,0.00016438,2]
[362092134,1747990233244,-240.0,0.00016438,2]
[362092135,1747990233254,-273.2182719,0.00016438,2]
[362092136,1747990233264,-430.0,0.00016438,2]
[362092137,1747990233274,-277.78973102,0.00016438,2]
[362092138,1747990233283,-436.07876874,0.00016438,2]
[362092139,1747990233293,-420.66536129,0.00016438,2]
[362092140,1747990233302,-214.04699396,0.00016438,2]
[362092141,1747990233312,-437.01542089,0.00016438,2]
[362092142,1747990233321,-430.0,0.00016438,2]
[362092143,1747990233331,-435.87848935,0.00016438,2]
[362092144,1747990233340,-540.0,0.00016438,2]
[362092145,1747990233349,-436.52080325,0.00016438,2]
[362092146,1747990233370,-434.74442728,0.00016438,2]
[362092147,1747990233383,-430.0,0.00016438,2]
[362092148,1747990233393,-440.9568345,0.00016438,2]
[362092149,1747990233403,-430.0,0.00016438,2]
[362092150,1747990233413,-436.57001667,0.00016438,2]
[362092151,1747990233423,-430.0,0.00016438,2]
[362092152,1747990233433,-443.95115529,0.00016438,2]
[362092153,1747990233444,-430.0,0.00016438,2]
[362092154,1747990233453,-430.0,0.00016438,2]
[362092155,1747990233463,-430.0,0.00016438,2]
[362092156,1747990233475,-430.0,0.00016438,2]
[362092157,1747990233485,-453.42766622,0.00016438,2]
[362092158,1747990233495,-567.06384451,0.00016438,2]
[362092159,1747990233505,-500.0,0.00016438,2]
[362092160,1747990233515,-500.0,0.00016438,2]
[362092161,1747990233525,-500.0,0.00016438,2]
[362092162,1747990233535,-500.0,0.00016438,2]
[362092163,1747990233545,-500.0,0.00016438,2]
[362092164,1747990233555,-500.0,0.00016438,2]
[362092165,1747990233565,-567.12372069,0.00016438,2]
[362092166,1747990233575,-430.0,0.00016438,2]
[362092167,1747990233586,-430.0,0.00016438,2]
[362092168,1747990233596,-370.0,0.00016438,2]
[362092169,1747990233605,-440.0381307,0.00016438,2]
[362092170,1747990233616,-442.36157164,0.00016438,2]
[362092171,1747990233626,-430.0,0.00016438,2]
[362092172,1747990233636,-517.58031536,0.00016438,2]
[362092173,1747990233646,-281.17660826,0.00016438,2]
[362092174,1747990233656,-430.0,0.00016438,2]
[362092175,1747990233667,-343.25362896,0.00016438,2]
[362092176,1747990233677,-430.0,0.00016438,2]
[362092177,1747990233688,-370.0,0.00016438,2]
[362092178,1747990233698,-430.0,0.00016438,2]
[362092179,1747990233710,-430.0,0.00016438,2]
[362092180,1747990233721,-430.0,0.00016438,2]
[362092181,1747990233730,-281.06054661,0.00016438,2]
[362092182,1747990233741,-430.0,0.00016438,2]
[362092183,1747990233755,-441.75602432,0.00016438,2]
[362092184,1747990233765,-349.37980882,0.00016438,2]
[362092185,1747990233776,-405.44191205,0.00016438,2]
[362092186,1747990233787,-403.23314512,0.00016438,2]
[362092187,1747990233798,-430.0,0.00016438,2]
[362092188,1747990233808,-501.84454895,0.00016438,2]
[362092189,1747990233819,-369.88680395,0.00016438,2]
[362092190,1747990233829,-318.20875314,0.00016438,2]
[362092191,1747990233839,-400.0,0.00016438,2]
[362092192,1747990233849,-501.45723376,0.00016438,2]
[362092193,1747990233860,-954.86,0.00016438,2]
[362092194,1747990233871,-405.72345344,0.00016438,2]
[362092195,1747990233882,-430.0,0.00016438,2]
[362092196,1747990233892,-503.81385338,0.00016438,2]
[362092197,1747990233902,-430.0,0.00016438,2]
[362092198,1747990233912,-437.41912816,0.00016438,2]
[362092199,1747990233922,-436.32268225,0.00016438,2]
[362092200,1747990233933,-430.0,0.00016438,2]
[362092201,1747990233944,-411.16102597,0.00016438,2]
[362092202,1747990233955,-430.0,0.00016438,2]
[362092203,1747990233966,-440.41720902,0.00016438,2]
[362092204,1747990233976,-432.3723101,0.00016438,2]
[362092205,1747990233986,-455.13400022,0.00016438,2]
[362092206,1747990234002,-439.28924183,0.00016438,2]
[362092207,1747990234013,-455.79768671,0.00016438,2]
[362092208,1747990234023,-315.36343533,0.00016438,2]
[362092209,1747990234033,-430.0,0.00016438,2]
[362092210,1747990234044,-403.19027361,0.00016438,2]
[362092211,1747990234054,-402.27762022,0.00016438,2]
[362092212,1747990234064,-456.38772759,0.00016438,2]
[362092213,1747990234074,-405.84171959,0.00016438,2]
[362092214,1747990234084,-450.7777189,0.00016438,2]
[362092215,1747990234095,-457.59606081,0.00016438,2]
[362092216,1747990234105,-450.0,0.00016438,2]
[362092217,1747990234116,-454.56859465,0.00016438,2]
[362092218,1747990234126,-451.64696847,0.00016438,2]
[362092219,1747990234136,-402.02106382,0.00016438,2]
[362092220,1747990234147,-458.9383802,0.00016438,2]
[362092221,1747990234157,-440.53751293,0.00016438,2]
[362092222,1747990234167,-430.0,0.00016438,2]
[362092223,1747990234178,-401.57008939,0.00016438,2]
[362092224,1747990234188,-430.0,0.00016438,2]
[362092225,1747990234198,-402.38400032,0.00016438,2]
[362092226,1747990234208,-270.79900213,0.00016438,2]
[362092227,1747990234219,-430.0,0.00016438,2]
[362092228,1747990234229,-405.34349265,0.00016438,2]
[362092229,1747990234239,-476.00629058,0.00016438,2]
[362092230,1747990234250,-434.31288487,0.00016438,2]
[362092231,1747990234260,-434.57111286,0.00016438,2]
[362092232,1747990234272,-430.0,0.00016438,2]
[362092233,1747990234282,-430.0,0.00016438,2]
[362092234,1747990234293,-400.0,0.00016438,2]
[362092235,1747990234303,-430.0,0.00016438,2]
[362092236,1747990234313,-578.63361746,0.00016438,2]
[362092237,1747990234323,-430.0,0.00016438,2]
[362092238,1747990234333,-437.82052897,0.00016438,2]
[362092239,1747990234342,-430.0,0.00016438,2]
[362092240,1747990234353,-430.0,0.00016438,2]
[362092241,1747990234363,-446.03110484,0.00016438,2]
[362092242,1747990234373,-437.37491403,0.00016438,2]
[362092243,1747990234383,-434.93866415,0.00016438,2]
[362092244,1747990234393,-430.0,0.00016438,2]
[362092245,1747990234403,-439.13183352,0.00016438,2]
[362092246,1747990234413,-436.70078508,0.00016438,2]
[362092247,1747990234424,-430.0,0.00016438,2]
[362092248,1747990234434,-431.67544142,0.00016438,2]
[362092249,1747990234444,-430.0,0.00016438,2]
[362092250,1747990234454,-434.82592464,0.00016438,2]
[362092251,1747990234464,-435.63466645,0.00016438,2]
[362092252,1747990234474,-432.05121581,0.00016438,2]
[362092253,1747990234485,-430.0,0.00016438,2]
[362092254,1747990234495,-430.0,0.00016438,2]
[362092255,1747990234505,-430.0,0.00016438,2]
[362092256,1747990234515,-430.0,0.00016438,2]
[362092257,1747990234525,-430.0,0.00016438,2]
[362092258,1747990234538,-436.2220748,0.00016438,2]
[362092259,1747990234547,-430.0,0.00016438,2]
[362092260,1747990234557,-430.0,0.00016438,2]
[362092261,1747990234566,-156.13582771,0.00016438,2]
[362092262,1747990234576,-405.14371816,0.00016438,2]
[362092263,1747990234586,-430.0,0.00016438,2]
[362092264,1747990234596,-430.0,0.00016438,2]
[362092265,1747990234605,-430.0,0.00016438,2]
[362092266,1747990234617,-430.0,0.00016438,2]
[362092267,1747990234627,-430.0,0.00016438,2]
[362092268,1747990234637,-430.0,0.00016438,2]
[362092269,1747990234647,-430.0,0.00016438,2]
[362092270,1747990234657,-542.51749488,0.00016438,2]
[362092271,1747990234667,-430.0,0.00016438,2]
[362092272,1747990234678,-430.0,0.00016438,2]
[362092273,1747990234688,-430.0,0.00016438,2]
[362092274,1747990234698,-430.0,0.00016438,2]
[362092275,1747990234713,-430.0,0.00016438,2]
[362092276,1747990234722,-430.0,0.00016438,2]
[362092277,1747990234732,-425.69451514,0.00016438,2]
[362092278,1747990234742,-500.0,0.00016438,2]
[362092279,1747990234755,-500.0,0.00016438,2]
[362092280,1747990234766,-500.0,0.00016438,2]
[362092281,1747990234775,-500.0,0.00016438,2]
[362092282,1747990234787,-500.0,0.00016438,2]
[362092283,1747990234798,-500.0,0.00016438,2]
[362092284,1747990234808,-500.0,0.00016438,2]
[362092285,1747990234818,-439.66364884,0.00016438,2]
[362092286,1747990234828,-500.0,0.00016438,2]
[362092287,1747990234837,-500.0,0.00016438,2]
[362092288,1747990234848,-500.0,0.00016438,2]
[362092289,1747990234858,-430.0,0.00016438,2]
[362092290,1747990234867,-263.91394736,0.00016438,2]
[362092291,1747990234878,-430.0,0.00016438,2]
[362092292,1747990234888,-430.0,0.00016438,2]
[362092293,1747990234899,-430.0,0.00016438,2]
[362092294,1747990234910,-430.0,0.00016438,2]
[362092295,1747990234920,-430.0,0.00016438,2]
[362092296,1747990234931,-430.0,0.00016438,2]
[362092297,1747990234941,-450.0,0.00016438,2]
[362092298,1747990234952,-463.12454567,0.00016438,2]
[362092299,1747990234963,-430.0,0.00016438,2]
[362092300,1747990234973,-450.9471429,0.00016438,2]
[362092301,1747990234983,-435.66260534,0.00016438,2]
[362092302,1747990234992,-430.0,0.00016438,2]
[362092303,1747990235004,-433.58768502,0.00016438,2]
[362092304,1747990235014,-507.83177911,0.00016438,2]
[362092305,1747990235024,-430.0,0.00016438,2]
[362092306,1747990235034,-405.80632735,0.00016438,2]
[362092307,1747990235044,-475.24276371,0.00016438,2]
[362092308,1747990235054,-430.0,0.00016438,2]
[362092309,1747990235064,-383.01944079,0.00016438,2]
[362092310,1747990235074,-271.11390887,0.00016438,2]
[362092311,1747990235084,-435.06584899,0.00016438,2]
[362092312,1747990235094,-430.0,0.00016438,2]
[362092313,1747990235104,-441.74044434,0.00016438,2]
[362092314,1747990235114,-378.21156864,0.00016438,2]
[362092315,1747990235123,-374.77014883,0.00016438,2]
[362092316,1747990235134,-373.87716198,0.00016438,2]
[362092317,1747990235143,-410.45876792,0.00016438,2]
[362092318,1747990235153,-437.00061878,0.00016438,2]
[362092319,1747990235164,-434.15746766,0.00016438,2]
[362092320,1747990235174,-430.0,0.00016438,2]
[362092321,1747990235183,-430.0,0.00016438,2]
[362092322,1747990235193,-430.0,0.00016438,2]
[362092323,1747990235203,-450.0,0.00016438,2]
[362092324,1747990235213,-430.0,0.00016438,2]
[362092325,1747990235223,-430.0,0.00016438,2]
[362092326,1747990235233,-430.0,0.00016438,2]
[362092327,1747990235244,-430.0,0.00016438,2]
[362092328,1747990235254,-437.06042602,0.00016438,2]
[362092329,1747990235264,-430.0,0.00016438,2]
[362092330,1747990235273,-400.81687059,0.00016438,2]
[362092331,1747990235283,-434.96396562,0.00016438,2]
[362092332,1747990235293,-453.21378013,0.00016438,2]
[362092333,1747990235303,-436.50814149,0.00016438,2]
[362092334,1747990235456,-450.0,0.00016438,2]
[362092335,1747990235480,-430.0,0.00016438,2]
[362092336,1747990235493,-453.08201822,0.00016438,2]
[362092337,1747990235504,-430.0,0.00016438,2]
[362092338,1747990235514,-430.0,0.00016438,2]
[362092339,1747990235524,-430.0,0.00016438,2]
[362092340,1747990235534,-440.04408824,0.00016438,2]
[362092341,1747990235545,-430.0,0.00016438,2]
[362092342,1747990235555,-430.0,0.00016438,2]
[362092343,1747990235567,-430.0,0.00016438,2]
[362092344,1747990235577,-430.0,0.00016438,2]
[362092345,1747990235587,-430.0,0.00016438,2]
[362092346,1747990235597,-430.0,0.00016438,2]
[362092347,1747990235607,-430.0,0.00016438,2]
[362092348,1747990235617,-430.0,0.00016438,2]
[362092349,1747990235628,-430.0,0.00016438,2]
[362092350,1747990235638,-437.47439426,0.00016438,2]
[362092351,1747990235649,-448.61961565,0.00016438,2]
[362092352,1747990235660,-430.0,0.00016438,2]
[362092353,1747990235670,-430.0,0.00016438,2]
[362092354,1747990235680,-430.0,0.00016438,2]
[362092355,1747990235690,-436.87306852,0.00016438,2]
[362092356,1747990235700,-431.59166093,0.00016438,2]
[362092357,1747990235714,-430.0,0.00016438,2]
[362092358,1747990235725,-637.71,0.00016438,2]
[362092359,1747990235736,-477.44513877,0.00016438,2]
[362092360,1747990235746,-436.50580879,0.00016438,2]
[362092361,1747990235758,-436.77569768,0.00016438,2]
[362092362,1747990235767,-430.0,0.00016438,2]
[362092363,1747990235777,-471.49425495,0.00016438,2]
[362092364,1747990235787,-587.19,0.00016438,2]
[362092365,1747990235797,-430.0,0.00016438,2]
[362092366,1747990235807,-430.93441036,0.00016438,2]
[362092367,1747990235818,-430.0,0.00016438,2]
[362092368,1747990235827,-491.63031972,0.00016438,2]
[362092369,1747990235837,-430.0,0.00016438,2]
[362092370,1747990235847,-571.89843912,0.00016438,2]
[362092371,1747990235856,-430.0,0.00016438,2]
[362092372,1747990235866,-430.0,0.00016438,2]
[362092373,1747990235876,-430.0,0.00016438,2]
[362092374,1747990235886,-433.06088225,0.00016438,2]
[362092375,1747990235897,-430.0,0.00016438,2]
[362092376,1747990235907,-430.0,0.00016438,2]
[362092377,1747990235916,-435.85779114,0.00016438,2]